[Event "Titled Tuesday Blitz May 25 2021"]
[White "Belenkaya, Dina"]
[Black "Madaminov, Mukhiddin"]
[WhiteFideId "24142654"]
[BlackFideId "14210703"]
[WhiteElo "2247"]
[BlackElo "1747"]
[Result "0-1"]
[Round "10"]
[TimeControl "180+1"]
[Date "2021.05.25"]
[WhiteClock "0:00:07"]
[BlackClock "0:00:30"]

1. e4 {[%clk 0:03:00]}  e6 {[%clk 0:02:59]} 2. Qe2 {[%clk 0:03:00]}  c5 {[%clk 0:02:58]} 3. Nf3 {[%clk 0:02:59]}  Nc6 {[%clk 0:02:58]} 4. g3 {[%clk 0:03:00]}  Be7 {[%clk 0:02:58]} 5. Bg2 {[%clk 0:02:59]}  d5 {[%clk 0:02:58]} 6. exd5 {[%clk 0:02:59]}  exd5 {[%clk 0:02:57]} 7. O-O {[%clk 0:02:59]}  Nf6 {[%clk 0:02:58]} 8. b3 {[%clk 0:02:39]}  O-O {[%clk 0:02:57]} 9. Re1 {[%clk 0:02:34]}  Re8 {[%clk 0:02:53]} 10. Qf1 {[%clk 0:02:33]}  Bf5 {[%clk 0:02:50]} 11. d3 {[%clk 0:02:33]}  Nb4 {[%clk 0:02:48]} 12. Na3 {[%clk 0:02:32]}  h6 {[%clk 0:02:48]} 13. Bb2 {[%clk 0:02:32]}  a6 {[%clk 0:02:34]} 14. Ne5 {[%clk 0:02:28]}  Bd6 {[%clk 0:02:29]} 15. Re2 {[%clk 0:02:12]}  Qc7 {[%clk 0:02:22]} 16. f4 {[%clk 0:01:58]}  Re7 {[%clk 0:02:17]} 17. Bf3 {[%clk 0:01:44]}  Rae8 {[%clk 0:02:15]} 18. Rae1 {[%clk 0:01:33]}  Nxa2 {[%clk 0:02:04]} 19. g4 {[%clk 0:01:33]}  Bc8 {[%clk 0:02:02]} 20. g5 {[%clk 0:01:33]}  hxg5 {[%clk 0:01:59]} 21. fxg5 {[%clk 0:01:34]}  Bxe5 {[%clk 0:01:51]} 22. gxf6 {[%clk 0:01:18]}  Bxh2+ {[%clk 0:01:25]} 23. Kh1 {[%clk 0:01:18]}  Rxe2 {[%clk 0:01:25]} 24. Rxe2 {[%clk 0:01:18]}  Rxe2 {[%clk 0:01:25]} 25. Qxe2 {[%clk 0:01:18]}  Qg3 {[%clk 0:01:24]} 26. Bg2 {[%clk 0:00:32]}  Qh4 {[%clk 0:01:03]} 27. fxg7 {[%clk 0:00:22]}  Be6 {[%clk 0:00:50]} 28. c4 {[%clk 0:00:08]}  d4 {[%clk 0:00:42]} 29. Nc2 {[%clk 0:00:06]}  b5 {[%clk 0:00:35]} 30. Qe4 {[%clk 0:00:06]}  Qxe4 {[%clk 0:00:28]} 31. Bxe4 {[%clk 0:00:07]}  Bf4 {[%clk 0:00:28]} 32. Kg2 {[%clk 0:00:07]}  Bc1 {[%clk 0:00:29]} 33. Kf2 {[%clk 0:00:07]}  Bxb2 {[%clk 0:00:28]} 34. Ke2 {[%clk 0:00:07]}  Nc3+ {[%clk 0:00:29]} 35. Kf3 {[%clk 0:00:08]}  Nxe4 {[%clk 0:00:29]} 36. Kxe4 {[%clk 0:00:07]}  Kxg7 {[%clk 0:00:29]} 37. cxb5 {[%clk 0:00:07]}  axb5 {[%clk 0:00:29]} 38. Ke5 {[%clk 0:00:08]}  Bxb3 {[%clk 0:00:30]} 39. Ne1 {[%clk 0:00:07]}  c4 {[%clk 0:00:30]} 0-1


[Site "https://www.chess.com"]

[Event "Titled Tuesday Blitz May 25 2021"]
[White "Buchenau, Frank"]
[Black "Senthil Maran K"]
[WhiteFideId "4604350"]
[BlackFideId "25035681"]
[WhiteElo "2255"]
[BlackElo "2194"]
[Result "0-1"]
[Round "10"]
[TimeControl "180+1"]
[Date "2021.05.25"]
[WhiteClock "0:00:02"]
[BlackClock "0:01:10"]

1. e4 {[%clk 0:03:00]}  c6 {[%clk 0:03:00]} 2. Nf3 {[%clk 0:03:00]}  d5 {[%clk 0:03:00]} 3. Nc3 {[%clk 0:03:00]}  dxe4 {[%clk 0:03:01]} 4. Nxe4 {[%clk 0:03:00]}  Nf6 {[%clk 0:03:01]} 5. Qe2 {[%clk 0:03:00]}  Nxe4 {[%clk 0:03:00]} 6. Qxe4 {[%clk 0:03:01]}  Nd7 {[%clk 0:03:01]} 7. Bc4 {[%clk 0:03:00]}  Nf6 {[%clk 0:03:01]} 8. Ne5 {[%clk 0:03:01]}  e6 {[%clk 0:03:02]} 9. Qe2 {[%clk 0:03:00]}  b5 {[%clk 0:03:02]} 10. Bb3 {[%clk 0:03:00]}  Bb7 {[%clk 0:03:00]} 11. O-O {[%clk 0:02:59]}  Qc7 {[%clk 0:03:00]} 12. d4 {[%clk 0:02:59]}  Bd6 {[%clk 0:02:59]} 13. a4 {[%clk 0:02:57]}  a6 {[%clk 0:02:58]} 14. c3 {[%clk 0:02:57]}  O-O {[%clk 0:02:57]} 15. Re1 {[%clk 0:02:54]}  b4 {[%clk 0:02:41]} 16. Bd2 {[%clk 0:02:47]}  bxc3 {[%clk 0:02:38]} 17. bxc3 {[%clk 0:02:47]}  c5 {[%clk 0:02:36]} 18. dxc5 {[%clk 0:02:19]}  Bxc5 {[%clk 0:02:24]} 19. Bf4 {[%clk 0:02:11]}  Bd6 {[%clk 0:02:24]} 20. Rad1 {[%clk 0:02:09]}  Nd5 {[%clk 0:02:22]} 21. Bxd5 {[%clk 0:01:55]}  Bxd5 {[%clk 0:02:23]} 22. c4 {[%clk 0:01:50]}  Bxe5 {[%clk 0:02:22]} 23. Bxe5 {[%clk 0:01:45]}  Qxc4 {[%clk 0:02:22]} 24. Qxc4 {[%clk 0:01:32]}  Bxc4 {[%clk 0:02:23]} 25. Rd7 {[%clk 0:01:22]}  f6 {[%clk 0:02:16]} 26. Bg3 {[%clk 0:00:59]}  Rf7 {[%clk 0:02:15]} 27. Rxf7 {[%clk 0:00:53]}  Kxf7 {[%clk 0:02:16]} 28. Rc1 {[%clk 0:00:51]}  Rc8 {[%clk 0:02:13]} 29. f3 {[%clk 0:00:46]}  e5 {[%clk 0:02:08]} 30. Kf2 {[%clk 0:00:46]}  g5 {[%clk 0:02:01]} 31. Ke3 {[%clk 0:00:44]}  Ke6 {[%clk 0:02:02]} 32. h4 {[%clk 0:00:39]}  h6 {[%clk 0:01:55]} 33. hxg5 {[%clk 0:00:38]}  hxg5 {[%clk 0:01:54]} 34. Bf2 {[%clk 0:00:33]}  f5 {[%clk 0:01:53]} 35. Rb1 {[%clk 0:00:26]}  f4+ {[%clk 0:01:52]} 36. Kd2 {[%clk 0:00:26]}  Rc6 {[%clk 0:01:45]} 37. g3 {[%clk 0:00:22]}  Bd5 {[%clk 0:01:43]} 38. gxf4 {[%clk 0:00:20]}  gxf4 {[%clk 0:01:42]} 39. Re1 {[%clk 0:00:11]}  Rc4 {[%clk 0:01:15]} 40. Ke2 {[%clk 0:00:09]}  Rc2+ {[%clk 0:01:13]} 41. Kf1 {[%clk 0:00:09]}  Bxf3 {[%clk 0:01:09]} 42. Bd4 {[%clk 0:00:09]}  Re2 {[%clk 0:01:08]} 43. Rxe2 {[%clk 0:00:01]}  Bxe2+ {[%clk 0:01:09]} 44. Kxe2 {[%clk 0:00:02]}  exd4 {[%clk 0:01:10]} 0-1


[Site "https://www.chess.com"]

[Event "Titled Tuesday Blitz May 25 2021"]
[White "Cardoso Cardoso, Jose Gabriel"]
[Black "Filali, Razzouki Marouane"]
[WhiteFideId "4430492"]
[BlackFideId "9003720"]
[WhiteElo "2343"]
[BlackElo "2073"]
[Result "1-0"]
[Round "10"]
[TimeControl "180+1"]
[Date "2021.05.25"]
[WhiteClock "0:00:47"]
[BlackClock "0:00:03"]

1. d4 {[%clk 0:03:00]}  Nf6 {[%clk 0:02:58]} 2. c4 {[%clk 0:03:00]}  c5 {[%clk 0:02:58]} 3. d5 {[%clk 0:03:00]}  b5 {[%clk 0:02:58]} 4. cxb5 {[%clk 0:03:01]}  a6 {[%clk 0:02:59]} 5. bxa6 {[%clk 0:03:02]}  g6 {[%clk 0:02:59]} 6. Nc3 {[%clk 0:03:02]}  Bg7 {[%clk 0:03:00]} 7. a7 {[%clk 0:03:02]}  Rxa7 {[%clk 0:02:53]} 8. e4 {[%clk 0:03:02]}  O-O {[%clk 0:02:52]} 9. Nf3 {[%clk 0:03:03]}  Qa5 {[%clk 0:02:51]} 10. Bd2 {[%clk 0:03:02]}  Rb7 {[%clk 0:02:42]} 11. b3 {[%clk 0:02:54]}  Rb4 {[%clk 0:02:37]} 12. Bc4 {[%clk 0:02:47]}  Ba6 {[%clk 0:02:33]} 13. a3 {[%clk 0:02:41]}  Rxc4 {[%clk 0:02:26]} 14. bxc4 {[%clk 0:02:36]}  Bxc4 {[%clk 0:02:26]} 15. Qc2 {[%clk 0:02:33]}  Qa6 {[%clk 0:02:19]} 16. Ne5 {[%clk 0:02:30]}  d6 {[%clk 0:02:06]} 17. Nxc4 {[%clk 0:02:29]}  Qxc4 {[%clk 0:02:07]} 18. f3 {[%clk 0:02:21]}  Nbd7 {[%clk 0:01:57]} 19. Rc1 {[%clk 0:02:02]}  Ne5 {[%clk 0:01:54]} 20. Nd1 {[%clk 0:01:48]}  Nd3+ {[%clk 0:01:50]} 21. Kf1 {[%clk 0:01:48]}  Qd4 {[%clk 0:01:50]} 22. Be3 {[%clk 0:01:37]}  Qe5 {[%clk 0:01:00]} 23. Qxd3 {[%clk 0:01:35]}  Nh5 {[%clk 0:00:58]} 24. g3 {[%clk 0:01:28]}  f5 {[%clk 0:00:56]} 25. Kg2 {[%clk 0:01:19]}  f4 {[%clk 0:00:46]} 26. Bf2 {[%clk 0:01:18]}  fxg3 {[%clk 0:00:22]} 27. hxg3 {[%clk 0:01:19]}  Bh6 {[%clk 0:00:22]} 28. Ne3 {[%clk 0:01:09]}  Qg5 {[%clk 0:00:10]} 29. Rxh5 {[%clk 0:01:09]}  Qxh5 {[%clk 0:00:09]} 30. Qe2 {[%clk 0:01:06]}  Qe5 {[%clk 0:00:05]} 31. Ng4 {[%clk 0:01:06]}  Qg7 {[%clk 0:00:05]} 32. Nxh6+ {[%clk 0:01:03]}  Qxh6 {[%clk 0:00:06]} 33. Be3 {[%clk 0:01:03]}  Qh5 {[%clk 0:00:03]} 34. a4 {[%clk 0:01:00]}  Qe5 {[%clk 0:00:03]} 35. a5 {[%clk 0:01:00]}  Ra8 {[%clk 0:00:04]} 36. a6 {[%clk 0:01:00]}  Qg7 {[%clk 0:00:02]} 37. Rb1 {[%clk 0:00:59]}  h6 {[%clk 0:00:01]} 38. Rb7 {[%clk 0:00:58]}  Kh7 {[%clk 0:00:02]} 39. a7 {[%clk 0:00:58]}  Qf6 {[%clk 0:00:02]} 40. Bf4 {[%clk 0:00:49]}  Rf8 {[%clk 0:00:03]} 41. e5 {[%clk 0:00:47]}  dxe5 {[%clk 0:00:02]} 42. Qxe5 {[%clk 0:00:48]}  Qxe5 {[%clk 0:00:02]} 43. Bxe5 {[%clk 0:00:48]}  g5 {[%clk 0:00:02]} 44. Rb8 {[%clk 0:00:48]}  Kg6 {[%clk 0:00:03]} 45. Rxf8 {[%clk 0:00:47]} 1-0


[Site "https://www.chess.com"]

[Event "Titled Tuesday Blitz May 25 2021"]
[White "Chernov, Alexander A."]
[Black "kleopl"]
[WhiteFideId "4152492"]
[WhiteElo "1930"]
[BlackElo "2482"]
[Result "0-1"]
[Round "10"]
[TimeControl "180+1"]
[Date "2021.05.25"]
[WhiteClock "0:00:01"]
[BlackClock "0:00:19"]

1. Nf3 {[%clk 0:02:59]}  d6 {[%clk 0:02:58]} 2. g3 {[%clk 0:02:59]}  c5 {[%clk 0:02:55]} 3. Bg2 {[%clk 0:02:58]}  Nc6 {[%clk 0:02:55]} 4. O-O {[%clk 0:02:58]}  e5 {[%clk 0:02:55]} 5. d3 {[%clk 0:02:56]}  g6 {[%clk 0:02:55]} 6. c4 {[%clk 0:02:52]}  Bg7 {[%clk 0:02:55]} 7. Nc3 {[%clk 0:02:52]}  Nge7 {[%clk 0:02:55]} 8. Ne1 {[%clk 0:02:51]}  O-O {[%clk 0:02:54]} 9. Nc2 {[%clk 0:02:51]}  f5 {[%clk 0:02:51]} 10. Ne3 {[%clk 0:02:50]}  Be6 {[%clk 0:02:50]} 11. Ned5 {[%clk 0:02:50]}  Rb8 {[%clk 0:02:45]} 12. Bd2 {[%clk 0:02:43]}  a6 {[%clk 0:02:45]} 13. Nxe7+ {[%clk 0:02:32]}  Nxe7 {[%clk 0:02:44]} 14. a4 {[%clk 0:02:22]}  Qd7 {[%clk 0:02:39]} 15. a5 {[%clk 0:02:16]}  Nc6 {[%clk 0:02:37]} 16. Nd5 {[%clk 0:02:15]}  e4 {[%clk 0:02:25]} 17. Bc3 {[%clk 0:02:12]}  exd3 {[%clk 0:01:44]} 18. Qxd3 {[%clk 0:02:05]}  Ne5 {[%clk 0:01:42]} 19. Qc2 {[%clk 0:02:04]}  Qf7 {[%clk 0:01:35]} 20. b3 {[%clk 0:01:57]}  Rfd8 {[%clk 0:01:32]} 21. Rad1 {[%clk 0:01:48]}  h5 {[%clk 0:01:31]} 22. Nf4 {[%clk 0:01:38]}  Kh7 {[%clk 0:01:30]} 23. h4 {[%clk 0:01:27]}  Qe7 {[%clk 0:01:23]} 24. Bd5 {[%clk 0:01:18]}  Bxd5 {[%clk 0:01:21]} 25. Rxd5 {[%clk 0:01:14]}  Nc6 {[%clk 0:01:16]} 26. Bxg7 {[%clk 0:01:06]}  Nb4 {[%clk 0:01:07]} 27. Qc3 {[%clk 0:00:59]}  Nxd5 {[%clk 0:01:05]} 28. cxd5 {[%clk 0:00:56]}  Qxg7 {[%clk 0:01:06]} 29. Qxg7+ {[%clk 0:00:48]}  Kxg7 {[%clk 0:01:06]} 30. Ne6+ {[%clk 0:00:48]}  Kf6 {[%clk 0:01:06]} 31. Nxd8 {[%clk 0:00:48]}  Rxd8 {[%clk 0:01:07]} 32. f4 {[%clk 0:00:40]}  Re8 {[%clk 0:01:06]} 33. Kf2 {[%clk 0:00:39]}  Re4 {[%clk 0:01:05]} 34. Rc1 {[%clk 0:00:35]}  Rd4 {[%clk 0:01:02]} 35. Rc4 {[%clk 0:00:29]}  Rxd5 {[%clk 0:01:00]} 36. e4 {[%clk 0:00:29]}  Rd4 {[%clk 0:00:42]} 37. e5+ {[%clk 0:00:23]}  Ke6 {[%clk 0:00:37]} 38. Rc3 {[%clk 0:00:15]}  dxe5 {[%clk 0:00:31]} 39. Rxc5 {[%clk 0:00:14]}  exf4 {[%clk 0:00:29]} 40. Rc7 {[%clk 0:00:11]}  fxg3+ {[%clk 0:00:27]} 41. Kxg3 {[%clk 0:00:11]}  Rd3+ {[%clk 0:00:27]} 42. Kf4 {[%clk 0:00:10]}  Rxb3 {[%clk 0:00:27]} 43. Rg7 {[%clk 0:00:08]}  Rb4+ {[%clk 0:00:27]} 44. Kf3 {[%clk 0:00:07]}  Kf6 {[%clk 0:00:27]} 45. Rc7 {[%clk 0:00:06]}  Rb5 {[%clk 0:00:24]} 46. Kf4 {[%clk 0:00:04]}  Rxa5 {[%clk 0:00:21]} 47. Rxb7 {[%clk 0:00:03]}  Ra4+ {[%clk 0:00:21]} 48. Kg3 {[%clk 0:00:02]}  a5 {[%clk 0:00:20]} 49. Kh3 {[%clk 0:00:02]}  Ra3+ {[%clk 0:00:19]} 50. Kg2 {[%clk 0:00:01]}  f4 {[%clk 0:00:19]} 0-1


[Site "https://www.chess.com"]

[Event "Titled Tuesday Blitz May 25 2021"]
[White "Dang, Hoang Son"]
[Black "Lazavik, Denis"]
[WhiteFideId "12402435"]
[BlackFideId "13515110"]
[WhiteElo "2248"]
[BlackElo "2436"]
[Result "1-0"]
[Round "10"]
[TimeControl "180+1"]
[Date "2021.05.25"]
[WhiteClock "0:00:09"]
[BlackClock "0:00:06"]

1. d4 {[%clk 0:03:00]}  Nf6 {[%clk 0:03:00]} 2. c4 {[%clk 0:02:59]}  e6 {[%clk 0:02:59]} 3. Nf3 {[%clk 0:03:00]}  d5 {[%clk 0:02:58]} 4. g3 {[%clk 0:03:00]}  Be7 {[%clk 0:02:58]} 5. Bg2 {[%clk 0:03:01]}  O-O {[%clk 0:02:59]} 6. O-O {[%clk 0:03:02]}  dxc4 {[%clk 0:02:59]} 7. Qc2 {[%clk 0:03:02]}  a6 {[%clk 0:02:59]} 8. Qxc4 {[%clk 0:03:02]}  b5 {[%clk 0:02:59]} 9. Qc2 {[%clk 0:03:02]}  Bb7 {[%clk 0:03:00]} 10. Bd2 {[%clk 0:03:03]}  Be4 {[%clk 0:02:53]} 11. Qc1 {[%clk 0:03:03]}  Bb7 {[%clk 0:02:39]} 12. Rd1 {[%clk 0:02:39]}  Bd6 {[%clk 0:02:35]} 13. a3 {[%clk 0:02:29]}  Qe7 {[%clk 0:02:23]} 14. b4 {[%clk 0:02:21]}  Nbd7 {[%clk 0:02:21]} 15. Bg5 {[%clk 0:02:20]}  h6 {[%clk 0:02:17]} 16. Bd2 {[%clk 0:02:11]}  e5 {[%clk 0:01:48]} 17. dxe5 {[%clk 0:01:59]}  Nxe5 {[%clk 0:01:47]} 18. Nc3 {[%clk 0:01:58]}  Nxf3+ {[%clk 0:01:36]} 19. exf3 {[%clk 0:01:56]}  c5 {[%clk 0:01:33]} 20. Bxh6 {[%clk 0:01:49]}  gxh6 {[%clk 0:01:29]} 21. Qxh6 {[%clk 0:01:50]}  Rfd8 {[%clk 0:00:42]} 22. Re1 {[%clk 0:01:45]}  Qf8 {[%clk 0:00:34]} 23. Qxf6 {[%clk 0:01:44]}  cxb4 {[%clk 0:00:35]} 24. axb4 {[%clk 0:01:43]}  Qg7 {[%clk 0:00:29]} 25. Qxg7+ {[%clk 0:01:29]}  Kxg7 {[%clk 0:00:30]} 26. Rab1 {[%clk 0:01:28]}  Rac8 {[%clk 0:00:28]} 27. Ne4 {[%clk 0:01:27]}  Bf8 {[%clk 0:00:23]} 28. f4 {[%clk 0:00:43]}  Rc4 {[%clk 0:00:21]} 29. Ng5 {[%clk 0:00:34]}  Bxg2 {[%clk 0:00:20]} 30. Kxg2 {[%clk 0:00:34]}  Rxb4 {[%clk 0:00:20]} 31. Ra1 {[%clk 0:00:33]}  Ra4 {[%clk 0:00:18]} 32. Rad1 {[%clk 0:00:30]}  Rad4 {[%clk 0:00:12]} 33. Rc1 {[%clk 0:00:30]}  b4 {[%clk 0:00:11]} 34. Rc6 {[%clk 0:00:29]}  R4d6 {[%clk 0:00:10]} 35. Rc7 {[%clk 0:00:29]}  R8d7 {[%clk 0:00:10]} 36. Rc8 {[%clk 0:00:29]}  Rd8 {[%clk 0:00:10]} 37. Rc7 {[%clk 0:00:24]}  R6d7 {[%clk 0:00:10]} 38. Rc4 {[%clk 0:00:24]}  b3 {[%clk 0:00:08]} 39. Rb1 {[%clk 0:00:24]}  Rb7 {[%clk 0:00:08]} 40. Ra4 {[%clk 0:00:23]}  Rb6 {[%clk 0:00:06]} 41. Rb2 {[%clk 0:00:23]}  Rc8 {[%clk 0:00:06]} 42. Nf3 {[%clk 0:00:18]}  a5 {[%clk 0:00:01]} 43. Nd4 {[%clk 0:00:18]}  Rc3 {[%clk 0:00:01]} 44. Rxa5 {[%clk 0:00:17]}  Rd3 {[%clk 0:00:01]} 45. Nf5+ {[%clk 0:00:17]}  Kg8 {[%clk 0:00:01]} 46. Ne3 {[%clk 0:00:15]}  Rc3 {[%clk 0:00:02]} 47. Nd5 {[%clk 0:00:15]}  Rc2 {[%clk 0:00:02]} 48. Rb1 {[%clk 0:00:10]}  Rd6 {[%clk 0:00:02]} 49. Rxb3 {[%clk 0:00:09]}  Re6 {[%clk 0:00:02]} 50. Re3 {[%clk 0:00:07]}  Rd6 {[%clk 0:00:02]} 51. Re8 {[%clk 0:00:06]}  Kg7 {[%clk 0:00:03]} 52. f5 {[%clk 0:00:06]}  f6 {[%clk 0:00:03]} 53. Nf4 {[%clk 0:00:06]}  Kf7 {[%clk 0:00:02]} 54. Rb8 {[%clk 0:00:06]}  Be7 {[%clk 0:00:03]} 55. Ra7 {[%clk 0:00:06]}  Rdd2 {[%clk 0:00:03]} 56. Ng6 {[%clk 0:00:03]}  Rxf2+ {[%clk 0:00:04]} 57. Kh3 {[%clk 0:00:04]}  Rxh2+ {[%clk 0:00:04]} 58. Kg4 {[%clk 0:00:04]}  Rc4+ {[%clk 0:00:05]} 59. Nf4 {[%clk 0:00:05]}  Rf2 {[%clk 0:00:04]} 60. Rbb7 {[%clk 0:00:05]}  Re4 {[%clk 0:00:04]} 61. Kh3 {[%clk 0:00:05]}  Rf3 {[%clk 0:00:05]} 62. Ng6 {[%clk 0:00:05]}  Rxf5 {[%clk 0:00:05]} 63. Nxe7 {[%clk 0:00:06]}  Rh5+ {[%clk 0:00:05]} 64. Kg2 {[%clk 0:00:05]}  Ke6 {[%clk 0:00:06]} 65. Ng6 {[%clk 0:00:05]}  Rb5 {[%clk 0:00:04]} 66. Nf4+ {[%clk 0:00:05]}  Rxf4 {[%clk 0:00:04]} 67. gxf4 {[%clk 0:00:06]}  Rc5 {[%clk 0:00:04]} 68. Kg3 {[%clk 0:00:06]}  Kf5 {[%clk 0:00:04]} 69. Rb3 {[%clk 0:00:05]}  Rc4 {[%clk 0:00:04]} 70. Ra5+ {[%clk 0:00:06]}  Kg6 {[%clk 0:00:05]} 71. Rb6 {[%clk 0:00:06]}  Rc1 {[%clk 0:00:06]} 72. Raa6 {[%clk 0:00:06]}  Rg1+ {[%clk 0:00:06]} 73. Kf2 {[%clk 0:00:07]}  Rb1 {[%clk 0:00:04]} 74. Rxf6+ {[%clk 0:00:07]}  Kh5 {[%clk 0:00:05]} 75. Rg6 {[%clk 0:00:07]}  Kh4 {[%clk 0:00:05]} 76. Rg8 {[%clk 0:00:06]}  Rb2+ {[%clk 0:00:05]} 77. Ke3 {[%clk 0:00:07]}  Rb3+ {[%clk 0:00:06]} 78. Ke2 {[%clk 0:00:07]}  Rb2+ {[%clk 0:00:07]} 79. Kd3 {[%clk 0:00:08]}  Rb3+ {[%clk 0:00:07]} 80. Kc2 {[%clk 0:00:08]}  Rb6 {[%clk 0:00:06]} 81. Rxb6 {[%clk 0:00:09]} 1-0


[Site "https://www.chess.com"]

[Event "Titled Tuesday Blitz May 25 2021"]
[White "Dobre, Claudiu-Cristian"]
[Black "Spyropoulos, Nikolaos"]
[WhiteFideId "1211854"]
[BlackFideId "4298977"]
[WhiteElo "2230"]
[BlackElo "2159"]
[Result "0-1"]
[Round "10"]
[TimeControl "180+1"]
[Date "2021.05.25"]
[WhiteClock "0:00:01"]
[BlackClock "0:01:21"]

1. c4 {[%clk 0:03:00]}  e6 {[%clk 0:02:29]} 2. Nc3 {[%clk 0:02:59]}  f5 {[%clk 0:02:28]} 3. g3 {[%clk 0:02:57]}  Nf6 {[%clk 0:02:28]} 4. Bg2 {[%clk 0:02:57]}  Bb4 {[%clk 0:02:23]} 5. Nf3 {[%clk 0:02:57]}  O-O {[%clk 0:02:22]} 6. O-O {[%clk 0:02:57]}  b6 {[%clk 0:02:20]} 7. a3 {[%clk 0:02:49]}  Bxc3 {[%clk 0:02:19]} 8. bxc3 {[%clk 0:02:49]}  Bb7 {[%clk 0:02:20]} 9. d3 {[%clk 0:02:34]}  d6 {[%clk 0:02:12]} 10. a4 {[%clk 0:02:14]}  a5 {[%clk 0:02:11]} 11. e4 {[%clk 0:01:56]}  fxe4 {[%clk 0:02:10]} 12. Ng5 {[%clk 0:01:56]}  Qe7 {[%clk 0:02:11]} 13. Re1 {[%clk 0:01:46]}  Nbd7 {[%clk 0:02:07]} 14. Ra2 {[%clk 0:01:39]}  h6 {[%clk 0:01:58]} 15. Nxe4 {[%clk 0:01:38]}  Nxe4 {[%clk 0:01:57]} 16. Bxe4 {[%clk 0:01:37]}  Bxe4 {[%clk 0:01:58]} 17. Rxe4 {[%clk 0:01:37]}  e5 {[%clk 0:01:58]} 18. d4 {[%clk 0:01:35]}  Rae8 {[%clk 0:01:58]} 19. Re1 {[%clk 0:01:12]}  Qf7 {[%clk 0:01:55]} 20. d5 {[%clk 0:00:41]}  Qg6 {[%clk 0:01:42]} 21. Qc2 {[%clk 0:00:27]}  Rf5 {[%clk 0:01:41]} 22. Be3 {[%clk 0:00:23]}  Ref8 {[%clk 0:01:40]} 23. Qe4 {[%clk 0:00:21]}  Nf6 {[%clk 0:01:35]} 24. Qb1 {[%clk 0:00:19]}  Ng4 {[%clk 0:01:34]} 25. Rae2 {[%clk 0:00:15]}  Qh5 {[%clk 0:01:32]} 26. h4 {[%clk 0:00:15]}  Nxe3 {[%clk 0:01:29]} 27. fxe3 {[%clk 0:00:09]}  Qg4 {[%clk 0:01:29]} 28. Rg2 {[%clk 0:00:09]}  Qxc4 {[%clk 0:01:29]} 29. e4 {[%clk 0:00:07]}  Rf3 {[%clk 0:01:28]} 30. Qb5 {[%clk 0:00:07]}  Qxb5 {[%clk 0:01:27]} 31. axb5 {[%clk 0:00:06]}  Rxc3 {[%clk 0:01:28]} 32. Ree2 {[%clk 0:00:07]}  Kh7 {[%clk 0:01:25]} 33. Rc2 {[%clk 0:00:07]}  Rff3 {[%clk 0:01:25]} 34. Rxc3 {[%clk 0:00:05]}  Rxc3 {[%clk 0:01:26]} 35. Rf2 {[%clk 0:00:05]}  a4 {[%clk 0:01:24]} 36. Rf8 {[%clk 0:00:05]}  Rc4 {[%clk 0:01:23]} 37. Ra8 {[%clk 0:00:03]}  Rxe4 {[%clk 0:01:22]} 38. Ra7 {[%clk 0:00:03]}  Rd4 {[%clk 0:01:21]} 39. h5 {[%clk 0:00:04]}  Rxd5 {[%clk 0:01:21]} 40. Rxc7 {[%clk 0:00:02]}  Rxb5 {[%clk 0:01:21]} 41. Rc6 {[%clk 0:00:01]}  a3 {[%clk 0:01:21]} 0-1


[Site "https://www.chess.com"]

[Event "Titled Tuesday Blitz May 25 2021"]
[White "Estrada Nieto, Julian"]
[Black "Maevsky, Nikolay"]
[WhiteFideId "5101018"]
[BlackFideId "4198220"]
[WhiteElo "2270"]
[BlackElo "2282"]
[Result "0-1"]
[Round "10"]
[TimeControl "180+1"]
[Date "2021.05.25"]
[WhiteClock "0:00:02"]
[BlackClock "0:00:17"]

1. e4 {[%clk 0:03:00]}  c6 {[%clk 0:02:59]} 2. d4 {[%clk 0:02:59]}  d5 {[%clk 0:03:00]} 3. Nc3 {[%clk 0:02:57]}  dxe4 {[%clk 0:03:00]} 4. Nxe4 {[%clk 0:02:57]}  Bf5 {[%clk 0:03:00]} 5. Ng3 {[%clk 0:02:57]}  Bg6 {[%clk 0:03:00]} 6. h4 {[%clk 0:02:58]}  h6 {[%clk 0:03:01]} 7. Nf3 {[%clk 0:02:58]}  e6 {[%clk 0:03:00]} 8. h5 {[%clk 0:02:59]}  Bh7 {[%clk 0:03:01]} 9. Bd3 {[%clk 0:02:59]}  Bxd3 {[%clk 0:03:01]} 10. Qxd3 {[%clk 0:02:59]}  Nf6 {[%clk 0:03:01]} 11. Bd2 {[%clk 0:02:59]}  Nbd7 {[%clk 0:02:58]} 12. O-O-O {[%clk 0:02:59]}  Be7 {[%clk 0:02:59]} 13. Ne4 {[%clk 0:02:49]}  Nxe4 {[%clk 0:02:59]} 14. Qxe4 {[%clk 0:02:49]}  Nf6 {[%clk 0:02:59]} 15. Qe2 {[%clk 0:02:48]}  Qd5 {[%clk 0:03:00]} 16. c4 {[%clk 0:02:48]}  Qe4 {[%clk 0:02:40]} 17. Qxe4 {[%clk 0:02:47]}  Nxe4 {[%clk 0:02:39]} 18. Be3 {[%clk 0:02:48]}  b5 {[%clk 0:02:38]} 19. d5 {[%clk 0:02:23]}  bxc4 {[%clk 0:01:59]} 20. dxc6 {[%clk 0:02:22]}  Rc8 {[%clk 0:01:55]} 21. Ne5 {[%clk 0:02:08]}  c3 {[%clk 0:01:36]} 22. Rd4 {[%clk 0:01:56]}  cxb2+ {[%clk 0:01:33]} 23. Kxb2 {[%clk 0:01:54]}  Nd6 {[%clk 0:01:23]} 24. g4 {[%clk 0:00:52]}  Bf6 {[%clk 0:01:19]} 25. f4 {[%clk 0:00:49]}  Nb5 {[%clk 0:01:09]} 26. Rb4 {[%clk 0:00:37]}  a6 {[%clk 0:01:08]} 27. a4 {[%clk 0:00:34]}  Nc7 {[%clk 0:01:01]} 28. Rd1 {[%clk 0:00:16]}  Nd5 {[%clk 0:00:46]} 29. Rxd5 {[%clk 0:00:13]}  exd5 {[%clk 0:00:47]} 30. Bd4 {[%clk 0:00:06]}  Bxe5 {[%clk 0:00:33]} 31. Bxe5 {[%clk 0:00:05]}  f6 {[%clk 0:00:34]} 32. Bd4 {[%clk 0:00:03]}  O-O {[%clk 0:00:22]} 33. Rb6 {[%clk 0:00:03]}  Rfe8 {[%clk 0:00:19]} 34. Rxa6 {[%clk 0:00:03]}  Re4 {[%clk 0:00:18]} 35. Bc5 {[%clk 0:00:03]}  Rc4 {[%clk 0:00:17]} 36. Kb3 {[%clk 0:00:02]}  Rxc5 {[%clk 0:00:17]} 0-1


[Site "https://www.chess.com"]